bitfinex-derivatives/quotes_ETHF0:USTF0_20260305
["timestamp","ask_amount","ask_price","bid_price","bid_amount"]
[1772700149112,0.59674466,2103.6,2103.2,0.55512788]
[1772700151014,0.59674466,2103.6,2102.8,0.55512788]
[1772700152311,0.45529982,2103.5,2102.8,0.55512788]
[1772700152511,0.59674466,2103.6,2102.8,0.55512788]
[1772700152712,0.45529982,2103.5,2102.8,0.55512788]
[1772700152912,0.59674466,2103.6,2102.8,0.55512788]
[1772700153111,0.59674466,2103.4,2102.8,0.55512788]
[1772700153311,0.59674466,2103.6,2102.8,0.55512788]
[1772700153513,0.45552917,2103.5,2102.8,0.55512788]
[1772700153716,0.59674466,2103.6,2102.8,0.55512788]
[1772700153913,4.57449859,2103.8,2102.8,0.55512788]
[1772700154119,0.45545726,2103.7,2102.8,0.55512788]
[1772700154420,0.45544897,2103.6,2102.8,0.55512788]
[1772700154609,0.59674466,2103.7,2102.8,0.55512788]
[1772700154610,4.57449859,2103.9,2103.0,0.55512788]
[1772700154810,0.45546271,2103.8,2103.0,0.55512788]
[1772700155015,0.45546271,2103.7,2103.0,0.55512788]
[1772700155314,0.59674466,2103.8,2103.0,0.55512788]
[1772700156219,0.59674466,2103.6,2103.0,0.55512788]
[1772700156618,0.59674466,2103.6,2102.9,0.23773]
[1772700156619,0.59674466,2103.6,2102.9,0.79285788]
[1772700156920,0.59674466,2103.6,2103.0,0.55512788]
[1772700157420,4.57449859,2103.8,2103.0,0.55512788]
[1772700157616,0.4554694,2103.7,2103.0,0.55512788]
[1772700157818,0.59674466,2103.8,2103.0,0.55512788]
[1772700158022,0.45542922,2103.7,2103.0,0.55512788]
[1772700158320,0.59674466,2103.7,2103.0,0.55512788]
[1772700159523,0.59674466,2103.7,2102.8,0.55512788]
[1772700160025,0.59674466,2103.5,2102.8,0.55512788]
[1772700160519,0.59674466,2103.7,2102.9,0.55512788]
[1772700162217,0.59674466,2103.7,2103.1,0.55512788]
[1772700164417,3.97775393,2103.9,2103.1,0.55512788]
[1772700164617,1.05194524,2103.8,2103.1,0.55512788]
[1772700164817,0.59674466,2103.8,2103.1,0.55512788]
[1772700166223,0.59674466,2103.8,2103.2,0.55512788]
[1772700166624,0.59674466,2103.8,2103.0,0.79283788]
[1772700166825,0.59674466,2103.8,2103.1,0.55512788]
[1772700167324,0.60025984,2104.0,2103.1,0.55512788]
[1772700168522,0.59674466,2103.8,2103.1,0.55512788]
[1772700171725,0.55700566,2103.6,2103.1,0.56452643]
[1772700172024,0.55700566,2103.6,2102.6,0.56452643]
[1772700172025,0.55700566,2103.4,2102.6,0.56452643]
[1772700173330,5.9224133,2103.3,2102.6,0.56452643]
[1772700173522,0.55700566,2103.3,2102.6,0.56452643]
[1772700175027,0.55700566,2103.1,2102.5,0.00618784]
[1772700175224,0.55700566,2103.3,2102.5,0.57071427]
[1772700184735,0.55700566,2103.1,2102.5,0.57071427]
[1772700187332,0.55700566,2103.1,2102.5,0.00618784]
[1772700190143,0.55700566,2102.9,2102.5,0.00618784]
[1772700190345,0.55700566,2102.9,2102.5,0.57071427]
[1772700190543,0.55700566,2102.9,2102.5,0.00618784]
[1772700190746,0.55700566,2102.9,2102.5,0.57071427]
[1772700194139,0.55700566,2102.9,2102.5,2.001e-05]
[1772700194345,0.55700566,2102.9,2102.3,0.56452643]
[1772700194738,0.55700566,2103.1,2102.4,0.56452643]
[1772700195245,0.55700566,2103.1,2102.4,0.56815719]
[1772700196144,0.55700566,2103.4,2102.6,0.56452643]
[1772700198451,0.55700566,2103.4,2102.8,0.56452643]
[1772700198650,0.55700566,2103.6,2102.8,0.56452643]
[1772700199145,0.56388597,2103.5,2102.8,0.56452643]
[1772700199448,0.56388597,2103.5,2102.4,0.58609671]
[1772700199644,0.56388597,2103.3,2102.4,0.58609671]
[1772700202356,0.56388597,2103.3,2102.6,0.58246595]
[1772700202549,0.56388597,2103.7,2102.8,0.58246595]
[1772700202745,0.56388597,2103.5,2102.8,0.58246595]
[1772700203046,0.56388597,2103.4,2102.8,0.58246595]
[1772700203248,0.56388597,2103.8,2103.0,0.58246595]
[1772700204251,0.56388597,2103.9,2103.2,0.58246595]
[1772700204550,0.56740115,2104.0,2103.4,0.58246595]
[1772700211148,0.00351518,2104.0,2103.6,0.55192949]
[1772700211451,0.56272139,2104.0,2103.6,0.55192949]
[1772700211645,0.56272139,2104.0,2103.5,0.55192949]
[1772700211850,0.56272139,2104.0,2103.0,0.23771]
[1772700211851,0.56272139,2104.0,2103.2,0.55192949]
[1772700213354,0.56272139,2104.0,2103.4,0.55192949]
[1772700214957,0.00351518,2104.0,2103.4,0.55192949]
[1772700215154,14.10610026,2104.7,2103.4,0.55192949]
[1772700215457,0.29780464,2106.1,2104.5,0.55192949]
[1772700215652,0.29780464,2105.9,2104.7,0.55192949]
[1772700216253,0.30330218,2105.9,2104.7,0.55668909]
[1772700217554,0.28687344,2105.8,2104.7,0.0047596]
[1772700218158,0.28687344,2105.8,2104.7,0.55668909]
[1772700221971,0.28687344,2105.8,2104.7,0.0047596]
[1772700223571,0.28687344,2105.8,2104.7,0.55668909]
[1772700227370,0.29961418,2105.6,2104.7,0.55668909]
[1772700229374,0.29961418,2105.6,2104.2,0.59483505]
[1772700230276,0.35953311,2105.4,2104.2,0.59901983]
[1772700230477,0.35953311,2105.3,2104.2,0.59901983]
[1772700230883,0.35953311,2105.3,2104.4,0.59483505]
[1772700233073,0.36032252,2105.4,2104.6,0.59483505]
[1772700240483,6.19038413,2105.9,2104.8,0.59483505]
[1772700240484,0.35760894,2105.8,2104.8,0.59483505]
[1772700240687,0.44799205,2105.7,2105.0,0.59483505]
[1772700240984,0.00549754,2105.9,2105.2,0.59483505]
[1772700241185,0.35833068,2106.5,2105.4,0.59483505]
[1772700241486,0.35833068,2106.3,2105.4,0.59483505]
[1772700241784,0.35833068,2106.9,2105.7,0.59483505]
[1772700242086,0.35833068,2106.6,2105.7,0.60054131]
[1772700242384,0.35833068,2106.4,2105.7,0.60054131]
[1772700244485,0.38093541,2106.2,2105.7,0.60054131]
[1772700245983,0.38093541,2106.2,2105.7,0.00570626]
[1772700246883,0.3787226,2106.0,2105.4,0.59483505]
[1772700247783,0.3787226,2106.0,2105.4,0.59923505]
[1772700249588,0.3766932,2106.2,2105.4,0.59923505]
[1772700249789,0.3766932,2106.6,2105.4,0.59923505]
[1772700249989,0.3766932,2106.4,2105.4,0.59923505]
[1772700250291,0.82436659,2106.3,2105.4,0.59923505]
[1772700250592,0.3766932,2106.3,2105.4,0.59923505]
[1772700252682,0.35231837,2106.6,2105.4,0.59923505]
[1772700252885,0.44743458,2106.5,2105.4,0.59923505]
[1772700253090,0.79832762,2106.4,2105.4,0.59923505]
[1772700253288,0.35089304,2106.4,2105.4,0.59923505]
[1772700254397,0.35089304,2106.2,2105.4,0.59923505]
[1772700254596,0.35089304,2106.6,2105.4,0.59923505]
[1772700254792,0.35089304,2106.4,2105.4,0.59923505]
[1772700258300,0.35089304,2106.4,2105.6,0.59483505]
[1772700258596,0.35724457,2106.6,2105.6,0.59483505]
[1772700258894,0.74246837,2106.5,2105.6,0.59483505]
[1772700259092,0.2949927,2106.6,2105.8,0.58823621]
[1772700259493,0.2949927,2106.8,2105.8,0.58823621]
[1772700259792,0.00607385,2106.9,2105.8,0.58823621]
[1772700259995,0.00607385,2106.9,2106.0,0.58823621]
[1772700265302,0.31458822,2107.7,2106.4,0.58823621]
[1772700265498,0.31458822,2107.5,2106.5,0.58823621]
[1772700266097,0.00524756,2107.5,2106.8,0.58823621]
[1772700267304,0.00524756,2107.5,2106.5,2.67890252]
[1772700267305,0.25874225,2108.1,2107.0,0.56363341]
[1772700267497,0.25874225,2107.9,2107.0,0.56363341]
[1772700268093,14.94853986,2108.8,2107.0,0.56363341]
[1772700268295,7.43435824,2110.5,2108.5,0.56363341]
[1772700268597,7.43435824,2112.0,2110.1,0.56363341]
[1772700268898,0.51806874,2111.8,2110.5,0.56363341]
[1772700269093,0.31334549,2112.7,2110.7,0.56363341]
[1772700269297,0.3193251,2112.7,2110.9,0.56363341]
[1772700269598,0.31334549,2112.5,2110.9,0.56363341]
[1772700269803,0.00597961,2112.7,2110.9,0.56363341]
[1772700269804,0.00597961,2112.7,2111.8,3.24253593]
[1772700270003,0.31334549,2113.7,2112.0,0.56363341]
[1772700270194,0.31334549,2114.7,2112.7,0.56363341]
[1772700270394,0.32375545,2115.6,2114.0,0.56363341]
[1772700270605,0.01040996,2115.6,2114.4,0.56363341]
[1772700270801,0.31334549,2115.5,2114.4,0.56363341]
[1772700271104,0.01478352,2115.6,2114.4,0.5683365]
[1772700271405,0.28922016,2115.5,2114.5,0.56363341]
[1772700271798,0.51806874,2115.2,2114.1,0.56363341]
[1772700272003,0.51806874,2115.1,2113.1,0.56363341]
[1772700272203,0.51806874,2114.8,2113.1,0.56363341]
[1772700272401,0.78369953,2117.3,2114.2,0.56363341]
[1772700272402,0.51806874,2116.9,2114.2,0.56363341]
[1772700272700,0.51806874,2116.9,2115.3,0.56363341]
[1772700273003,0.51806874,2116.2,2115.3,0.00516044]
[1772700273397,0.00597961,2116.1,2115.3,0.56879385]
[1772700273705,0.51806874,2116.6,2115.3,0.56879385]
[1772700273999,0.00597961,2116.1,2115.3,0.56879385]
[1772700274307,0.51806874,2116.2,2115.3,0.56879385]
[1772700274505,0.00597961,2115.8,2115.3,0.56879385]
[1772700274700,0.51806874,2116.8,2115.3,0.56879385]
[1772700274900,0.00597961,2116.5,2115.3,0.56879385]
[1772700275203,0.51806874,2116.4,2115.3,0.00516044]
[1772700275406,0.52404835,2116.1,2115.3,0.00516044]
[1772700275602,0.51806874,2116.1,2115.3,0.56879385]
[1772700275807,0.51806874,2116.1,2115.3,0.00516044]
[1772700276013,0.52404835,2115.6,2115.3,0.00516044]
[1772700276213,0.52404835,2115.6,2114.0,9.12537252]
[1772700276214,0.51806874,2115.6,2114.0,9.12537252]
[1772700276406,0.51806874,2115.6,2114.1,0.56363341]
[1772700276811,0.51806874,2115.4,2114.1,0.56363341]
[1772700277107,0.51806874,2115.3,2114.1,0.56705454]
[1772700277313,0.51806874,2115.1,2114.1,0.56705454]
[1772700277709,0.00597961,2114.9,2114.1,0.56705454]
[1772700277911,0.51806874,2114.8,2114.1,0.00342113]
[1772700278112,0.51806874,2115.2,2114.1,0.56705454]
[1772700278414,0.51806874,2114.8,2114.1,0.00342113]
[1772700278606,0.51806874,2114.8,2114.1,0.56705454]
[1772700278812,0.51806874,2115.3,2114.1,0.56705454]
[1772700279009,0.00597961,2115.3,2114.1,0.56705454]
[1772700279306,0.00494192,2115.4,2114.4,0.56363341]
[1772700279712,0.52301066,2115.4,2114.4,0.56363341]
[1772700279915,0.52899027,2115.4,2114.4,0.56363341]
[1772700280219,0.52301066,2115.4,2114.4,0.56363341]
[1772700280512,0.51806874,2115.2,2114.2,0.56363341]
[1772700280906,0.51806874,2115.1,2114.2,0.56363341]
[1772700281318,0.00597961,2114.8,2114.2,0.56363341]
[1772700281719,0.51806874,2115.0,2114.2,0.56363341]
[1772700281922,0.00597961,2114.8,2114.2,0.56363341]
[1772700282120,0.51806874,2115.0,2114.1,0.00342113]
[1772700282423,0.00597961,2114.7,2114.1,0.00342113]
[1772700282624,0.51806874,2114.8,2114.1,0.00342113]
[1772700282927,0.00597961,2114.5,2114.1,0.00342113]
[1772700283218,0.51806874,2114.8,2114.1,0.00342113]
[1772700283419,0.00597961,2114.5,2114.1,0.00342113]
[1772700283623,0.51806874,2114.8,2114.1,0.00342113]
[1772700283820,0.51806874,2114.8,2113.1,0.56363341]
[1772700284026,0.51806874,2114.5,2113.1,0.56363341]
[1772700284818,0.51806874,2114.5,2113.1,0.56805099]
[1772700286626,0.51806874,2115.0,2113.5,0.56363341]
[1772700286821,0.00597961,2114.9,2113.5,0.56363341]
[1772700287021,0.52404835,2114.9,2113.5,0.56363341]
[1772700287924,0.52404835,2114.8,2113.5,0.56363341]
[1772700288121,0.51806874,2114.8,2113.5,0.56363341]
[1772700288819,0.5310777,2114.6,2113.5,0.56363341]
[1772700289019,0.52509809,2114.6,2113.5,0.56363341]
[1772700289220,0.00597961,2114.5,2113.5,0.56363341]
[1772700289730,0.52509809,2116.1,2114.3,0.55549648]
[1772700290525,0.52923221,2116.1,2114.3,0.55549648]
[1772700290829,0.52923221,2116.1,2114.5,0.55549648]
[1772700291531,0.52923221,2116.1,2114.7,0.55549648]
[1772700291732,0.52923221,2116.1,2114.7,0.56162083]
[1772700293122,0.00413412,2116.1,2114.7,0.56162083]
[1772700295530,0.52923221,2116.1,2114.7,0.56162083]
[1772700296527,0.52509809,2116.0,2114.7,0.56162083]
[1772700296936,0.76525293,2115.8,2114.7,0.56162083]
[1772700297428,0.52509809,2115.6,2114.7,0.56162083]
[1772700297825,0.76525293,2115.4,2114.7,0.56162083]
[1772700298022,0.52509809,2115.4,2114.7,0.56162083]
[1772700298228,0.52509809,2115.4,2114.7,0.00612435]
[1772700298439,0.52509809,2115.1,2114.4,0.55549648]
[1772700298824,0.24015484,2115.0,2114.4,0.55549648]
[1772700299026,0.52509809,2115.1,2114.4,0.55549648]
[1772700299226,0.52509809,2115.1,2114.1,0.598101]
[1772700299426,0.52509809,2115.1,2114.1,0.60193076]
[1772700299832,0.24015484,2114.9,2114.1,0.60193076]
[1772700300229,0.52509809,2115.1,2114.1,0.60193076]
[1772700300430,0.23634,2115.2,2114.1,0.00382976]
[1772700300627,0.23634,2115.2,2113.9,0.598101]
[1772700300628,3.73806163,2115.1,2113.9,0.598101]
[1772700300835,0.24015484,2114.7,2113.9,0.598101]
[1772700301131,0.23637,2115.0,2113.9,0.598101]
[1772700301333,0.24015484,2114.7,2113.9,0.598101]
[1772700301533,3.97443163,2115.0,2113.9,0.60385977]
[1772700301829,3.97443163,2115.0,2113.9,0.00575877]
[1772700302025,0.23639,2114.8,2113.4,0.59824346]
[1772700302232,3.97445163,2114.8,2113.4,0.59824346]
[1772700302935,0.24015484,2114.4,2113.4,0.59824346]
[1772700303230,0.24582015,2114.4,2113.4,0.59824346]
[1772700303430,0.24582015,2114.4,2113.0,0.59892904]
[1772700303431,0.00566531,2114.4,2113.0,0.59892904]
[1772700303734,0.24210531,2114.4,2113.0,0.59892904]
[1772700303934,0.52509809,2113.9,2112.6,0.55549648]
[1772700304329,0.52509809,2113.3,2112.6,0.55549648]
[1772700304530,0.52509809,2113.3,2111.8,3.94662329]
[1772700304531,0.52509809,2113.3,2111.9,0.55549648]
[1772700305232,0.52509809,2113.7,2112.3,0.55549648]
[1772700305436,0.52509809,2113.7,2112.5,0.55549648]
[1772700305933,0.52509809,2114.1,2112.5,0.55549648]
[1772700306135,0.52509809,2114.1,2112.9,0.55549648]
[1772700306732,0.52509809,2114.0,2112.9,0.55549648]
[1772700307232,0.52509809,2113.9,2112.9,0.55549648]
[1772700307738,0.24015484,2113.7,2112.9,0.55549648]
[1772700307937,0.52509809,2113.6,2112.9,0.55549648]
[1772700308433,0.52509809,2114.2,2112.9,0.55549648]
[1772700308633,0.76525293,2114.2,2112.9,0.55549648]
[1772700308839,0.52509809,2114.2,2112.9,0.55549648]
[1772700309037,0.24015484,2114.1,2112.9,0.55549648]
[1772700309332,0.00566531,2114.4,2113.1,0.55549648]
[1772700309639,0.5307634,2114.4,2113.1,0.55549648]
[1772700309835,0.24015484,2114.3,2113.1,0.55549648]
[1772700310332,0.5307634,2114.4,2113.3,0.55549648]
[1772700310532,0.00566531,2114.4,2113.3,0.55549648]
[1772700311138,0.24582015,2114.4,2113.3,0.55549648]
[1772700311339,0.24582015,2114.4,2113.5,0.55549648]
[1772700311538,0.5307634,2114.4,2113.3,0.55549648]
[1772700312129,0.24015484,2114.2,2113.3,0.55549648]
[1772700312333,0.52509809,2114.3,2113.3,0.55549648]
[1772700312635,0.00566531,2114.4,2113.3,0.55549648]
[1772700312938,0.00566531,2114.4,2113.6,0.55549648]
[1772700313132,0.00566531,2114.4,2113.7,0.55549648]
[1772700313333,0.24582015,2114.4,2113.7,0.55549648]
[1772700313640,0.5307634,2114.4,2113.5,0.55549648]
[1772700313835,0.52509809,2114.2,2113.5,0.55549648]
[1772700314134,0.52509809,2114.2,2112.9,0.23659]
[1772700314341,0.52509809,2114.0,2113.1,0.55549648]
[1772700314840,0.00566531,2114.4,2112.1,5.57181314]
[1772700314841,0.52509809,2113.9,2112.3,0.23666]
[1772700315037,0.52509809,2113.9,2112.5,0.55549648]
[1772700315236,0.52509809,2113.7,2112.7,0.55549648]
[1772700315540,0.52509809,2113.7,2112.9,0.55549648]
[1772700315944,0.24015484,2113.4,2112.9,0.55549648]
[1772700316144,0.52509809,2113.4,2112.9,0.55549648]
[1772700316337,0.24015484,2113.0,2112.4,0.55549648]
[1772700316538,0.52509809,2113.1,2112.4,0.55549648]
[1772700317238,0.52509809,2113.1,2111.8,0.55549648]
[1772700317436,0.52509809,2113.0,2112.0,0.55549648]
[1772700317634,0.52509809,2113.0,2112.1,0.55549648]
[1772700317841,0.52509809,2112.8,2112.1,0.55549648]
[1772700318042,0.52938856,2112.8,2112.1,0.55549648]
[1772700318440,0.24015484,2112.6,2112.1,0.55549648]
[1772700318640,0.52938856,2112.8,2112.1,0.55549648]
[1772700318944,0.24015484,2112.5,2112.1,0.55549648]
[1772700319341,0.24015484,2112.3,2112.1,0.55549648]
[1772700319640,0.53265365,2113.7,2112.2,0.56491546]
[1772700319842,0.53265365,2113.7,2112.4,0.56491546]
[1772700319843,0.24015484,2113.6,2112.4,0.56491546]
[1772700320036,0.53265365,2113.7,2112.6,0.56491546]
[1772700320439,0.24015484,2113.4,2112.6,0.56491546]
[1772700320744,0.24487992,2113.4,2112.6,0.56926754]
[1772700321043,0.24015484,2113.2,2112.6,0.56926754]
[1772700321436,0.24015484,2113.1,2112.6,0.56926754]
[1772700321634,0.00472508,2113.4,2112.6,0.56926754]
[1772700321838,0.24015484,2113.0,2112.6,0.56926754]
[1772700322240,0.53771116,2113.3,2112.3,0.56491546]
[1772700322441,0.00472508,2113.4,2112.3,0.56491546]
[1772700322642,0.24015484,2113.2,2112.3,0.56491546]
[1772700323034,0.24015484,2113.1,2112.3,0.56491546]
[1772700323240,0.54243624,2113.4,2112.5,0.56491546]
[1772700323545,0.53771116,2113.2,2112.5,0.56491546]
[1772700323746,0.53771116,2113.2,2112.1,0.56491546]
[1772700323946,0.53771116,2113.2,2112.3,0.56491546]
[1772700324147,0.24015484,2112.9,2112.3,0.56491546]
[1772700324342,0.53771116,2113.0,2112.3,0.56491546]
[1772700324542,0.24015484,2112.7,2112.3,0.56491546]
[1772700325042,0.24015484,2112.5,2112.3,0.56491546]
[1772700325240,0.53771116,2113.0,2112.1,0.04648004]
[1772700325445,0.53771116,2113.0,2112.2,0.5853048]
[1772700325646,0.53771116,2113.0,2112.1,0.04648004]
[1772700326246,0.53771116,2113.0,2112.2,0.58623506]
[1772700326447,0.53771116,2113.0,2112.1,0.04648004]
[1772700326751,0.53771116,2113.0,2112.2,0.586191]
[1772700326952,0.53771116,2113.0,2112.1,0.04648004]
[1772700327151,0.53771116,2113.0,2112.0,0.2367]
[1772700327352,0.53771116,2113.0,2112.1,0.58682992]
[1772700327647,0.53771116,2113.0,2112.1,0.1062833]
[1772700327853,0.5470662,2113.8,2112.9,0.10155822]
[1772700328152,0.5470662,2113.8,2113.1,0.10155822]
[1772700328346,0.5470662,2113.8,2112.8,0.10624737]
[1772700328542,0.5470662,2113.8,2112.9,0.58700986]
[1772700328742,0.5470662,2113.8,2113.0,0.58700986]
[1772700328948,0.55247666,2113.8,2112.8,0.00416817]
[1772700329142,0.55247666,2113.8,2112.9,0.5871152]
[1772700329449,0.55247666,2113.8,2113.0,0.5871152]
[1772700329649,0.55247666,2113.8,2112.9,0.11641902]
[1772700329851,0.55247666,2113.8,2113.0,0.58778609]
[1772700330057,0.55247666,2113.8,2112.9,0.11641902]
[1772700330247,0.55247666,2113.8,2113.0,0.58782289]
[1772700330552,0.55247666,2113.8,2113.1,0.58782289]
[1772700330749,0.55247666,2113.8,2112.9,0.11641902]
[1772700330945,0.55247666,2113.8,2113.0,0.58787838]
[1772700331246,0.55247666,2113.8,2112.8,0.00416817]
[1772700331443,0.54438612,2113.7,2112.9,0.58826578]
[1772700331648,0.54438612,2113.7,2113.0,0.58826578]
[1772700331848,0.54438612,2113.7,2112.8,0.00416817]
[1772700332046,0.54438612,2113.7,2112.9,0.58826129]
[1772700332250,0.54438612,2113.7,2113.0,0.58826129]
[1772700332445,0.54438612,2113.7,2112.8,0.00416817]
[1772700332650,0.54438612,2113.7,2112.9,0.58845815]
[1772700332847,0.54438612,2113.7,2113.0,0.58845815]
[1772700333044,6.83541046,2113.8,2113.2,0.1209086]
[1772700333045,0.54979658,2113.8,2113.2,0.1209086]
[1772700333449,0.54979658,2113.8,2112.8,0.12507677]
[1772700333753,0.54979658,2113.8,2112.9,0.58753974]
[1772700333952,0.54979658,2113.8,2113.0,0.58753974]
[1772700334251,0.54979658,2113.8,2112.8,0.12507677]
[1772700334252,0.54979658,2113.8,2113.1,0.70844834]
[1772700334454,0.54438612,2114.3,2113.3,0.1209086]
[1772700334649,0.54438612,2114.6,2113.7,0.1209086]
[1772700334855,0.54438612,2114.6,2113.8,0.70844834]
[1772700335053,0.54438612,2114.6,2113.9,0.58753974]
[1772700335354,0.54438612,2114.6,2114.0,0.58753974]
[1772700335550,0.54438612,2114.6,2113.6,0.3459818]
[1772700335551,0.54936572,2114.6,2114.1,0.6960735]
[1772700335759,3.73806163,2115.1,2114.2,0.69595669]
[1772700335760,0.54438612,2115.1,2114.2,0.69595669]
[1772700335945,0.54438612,2115.1,2114.3,0.58649489]
[1772700336145,0.54438612,2115.1,2114.1,0.1094618]
[1772700336350,0.54438612,2115.1,2114.2,0.58559672]
[1772700336651,7.1750866,2115.9,2114.4,0.1094618]
[1772700336652,0.54438612,2115.5,2114.4,0.1094618]
[1772700336855,0.54797919,2115.1,2114.5,0.58559672]
[1772700337053,0.54797919,2115.1,2114.6,0.58559672]
[1772700337350,0.54797919,2115.1,2114.4,0.1094618]
[1772700337551,0.54797919,2115.1,2114.5,0.58132737]
[1772700337755,0.54797919,2115.1,2114.2,0.00442466]
[1772700338056,0.54797919,2115.1,2114.3,0.58135645]
[1772700338268,0.54797919,2115.1,2114.2,0.09995461]
[1772700338450,0.54797919,2115.1,2114.3,0.67652413]
[1772700338649,0.54797919,2115.1,2114.4,0.58099418]
[1772700338850,0.54797919,2115.1,2114.3,0.09552995]
[1772700339054,0.54797919,2115.1,2114.4,0.67646132]
[1772700339350,0.54797919,2115.1,2114.4,0.09552995]
[1772700340759,0.54797919,2115.1,2114.2,0.09118706]
[1772700340952,0.54797919,2115.1,2114.3,0.5802788]
[1772700341255,6.11935819,2116.1,2114.5,0.0899091]
[1772700341256,0.55289076,2115.4,2114.5,0.0899091]
[1772700341452,0.55289076,2115.4,2114.7,0.0899091]
[1772700341653,0.55289076,2115.4,2114.4,0.0899091]
[1772700341853,0.55289076,2115.4,2114.5,0.66955675]
[1772700342054,0.55289076,2115.4,2114.7,0.0899091]
[1772700342251,0.00334477,2115.4,2114.7,0.0899091]
[1772700342847,0.55623553,2115.4,2114.7,0.0899091]
[1772700343257,0.55623553,2115.4,2114.4,0.0974644]
[1772700343459,0.55623553,2115.4,2114.5,0.66942961]
[1772700343656,0.55623553,2115.4,2114.3,0.3339044]
[1772700343856,0.55623553,2115.4,2114.3,0.0974644]
[1772700344158,0.54911312,2115.3,2114.2,0.00442466]
[1772700345661,0.54911312,2115.3,2113.7,0.09003942]
[1772700346257,0.55061328,2115.1,2113.7,0.09003942]
[1772700346555,0.55061328,2114.9,2113.7,0.00483665]
[1772700348159,0.54982841,2114.7,2113.7,0.00483665]
[1772700348359,0.54982841,2114.5,2113.7,0.00483665]
[1772700351456,0.54982841,2114.5,2113.1,0.16868656]
[1772700351655,0.56697628,2114.3,2112.5,0.16868656]
[1772700351857,0.56697628,2114.1,2112.5,0.16868656]
[1772700352353,0.56697628,2114.1,2112.5,0.17383133]
[1772700352758,0.56697628,2113.9,2112.5,0.17383133]
[1772700352957,0.56697628,2113.7,2112.5,0.17383133]
[1772700353362,0.56697628,2113.7,2112.5,0.00514477]
[1772700357066,0.56697628,2113.7,2112.5,0.17752166]
[1772700357362,0.56697628,2113.7,2112.7,0.17237689]
[1772700359369,0.56697628,2113.7,2112.5,0.18150879]
[1772700359971,0.56697628,2113.7,2112.5,0.00514477]
[1772700360571,0.56697628,2113.7,2112.5,0.18150879]
[1772700361371,0.56697628,2113.7,2112.5,0.00514477]
[1772700362773,0.56697628,2113.7,2112.5,0.17998631]
[1772700363080,0.56697628,2113.5,2112.5,0.00514477]
[1772700367378,0.56697628,2113.3,2111.8,0.17854329]
[1772700367878,0.56697628,2113.1,2111.8,0.17854329]
[1772700368380,0.56697628,2113.1,2111.8,0.18284542]
[1772700369883,0.56697628,2113.1,2111.8,0.00430213]
[1772700370279,0.56697628,2112.9,2111.8,0.00430213]
[1772700370574,0.23659,2113.0,2111.8,0.00430213]
[1772700370575,0.56697628,2112.7,2111.8,0.00430213]
[1772700373180,0.56697628,2112.5,2111.1,0.15509028]
[1772700373486,0.56697628,2112.5,2111.3,0.15939241]
[1772700376180,0.56697628,2112.3,2110.9,0.15540058]
[1772700376382,0.57064613,2112.3,2110.9,0.15540058]
[1772700377178,0.57064613,2112.3,2110.7,0.39235249]
[1772700377179,0.56697628,2112.1,2110.7,0.39235249]
[1772700377384,0.56697628,2111.9,2110.7,0.39235249]
[1772700377687,0.56697628,2111.9,2110.8,0.15551249]
[1772700378181,0.56697628,2111.9,2110.6,0.15551249]
[1772700378383,0.56697628,2111.9,2110.3,0.15551249]
[1772700380184,0.5796821,2111.8,2110.3,0.15551249]
[1772700380682,0.5796821,2111.8,2110.5,0.09744685]
[1772700380887,0.5796821,2111.8,2110.8,0.09744685]
[1772700383182,0.5796821,2111.8,2111.0,0.08502678]
[1772700386090,6.762,2112.2,2111.2,0.08182732]
[1772700386091,0.5796821,2112.1,2111.2,0.08182732]
[1772700386293,0.5796821,2112.1,2111.3,0.31860732]
[1772700386589,0.58335195,2112.3,2111.6,0.08182732]
[1772700386890,0.58335195,2112.3,2111.6,0.08602045]
[1772700387889,0.00366985,2112.3,2111.6,0.08602045]
[1772700388188,0.563579,2112.3,2111.6,0.08602045]
[1772700391594,0.563579,2112.3,2111.6,0.00419313]
[1772700391792,0.563579,2112.3,2111.2,0.08403189]
[1772700391991,0.563579,2112.3,2111.0,0.32503502]
[1772700392383,0.563579,2112.3,2111.0,0.23681]
[1772700392793,0.55465063,2112.1,2111.0,0.00151528]
[1772700392994,0.55465063,2111.9,2111.0,0.00151528]
[1772700393491,0.55626441,2111.8,2110.4,0.32186746]
[1772700393692,0.55626441,2111.6,2110.2,0.08499746]
[1772700394093,0.55626441,2111.5,2110.2,0.08499746]
[1772700394284,0.55626441,2111.5,2109.9,0.32193746]
[1772700395394,0.55626441,2111.5,2110.0,0.08508248]
[1772700397197,0.55353722,2111.4,2110.0,0.08508248]
[1772700398100,0.55353722,2111.2,2109.9,0.23694]
[1772700398399,0.55353722,2111.0,2109.9,0.32739184]
[1772700399097,0.55353722,2111.0,2109.7,0.09045184]
[1772700400899,0.55353722,2111.0,2109.5,0.09151027]
[1772700401595,0.55353722,2111.0,2109.9,2.74031795]
[1772700401790,0.55353722,2111.0,2110.0,0.07588613]
[1772700402302,0.55353722,2111.0,2110.0,0.31281613]
[1772700402600,0.55353722,2111.0,2110.1,0.07588613]
[1772700403102,0.55353722,2111.0,2109.8,0.0827261]
[1772700403300,0.55353722,2111.0,2109.7,0.0827261]
[1772700404401,0.55353722,2111.0,2109.5,0.3197061]
[1772700404905,3.94100547,2111.3,2110.2,0.59800136]
[1772700405207,0.53904834,2111.5,2110.3,0.59800136]
[1772700405402,0.53904834,2111.5,2109.8,0.59800136]
[1772700406199,0.53904834,2111.5,2109.9,0.59800136]
[1772700406601,0.53904834,2111.3,2109.9,0.59800136]
[1772700408305,0.53904834,2111.3,2110.5,0.59800136]
[1772700408510,0.53904834,2111.6,2110.7,0.59800136]
[1772700410104,0.58841281,2111.5,2110.7,0.59800136]
[1772700412004,0.58841281,2111.5,2110.4,0.57800303]
[1772700412811,0.58841281,2111.3,2110.4,0.57800303]
[1772700414815,0.58841281,2111.3,2110.3,0.23689]
[1772700415113,0.58841281,2111.3,2110.3,0.81489303]
[1772700415312,0.58841281,2111.3,2110.4,0.57800303]
[1772700416113,0.58841281,2111.3,2110.3,0.23689]
[1772700416318,0.58841281,2111.3,2110.3,0.81489303]
[1772700416914,0.58841281,2111.1,2110.3,0.81489303]
[1772700417715,0.58841281,2111.1,2110.4,0.57800303]
[1772700418413,0.58841281,2111.1,2110.0,0.57800303]
[1772700418717,0.58841281,2111.1,2109.9,0.57800303]
[1772700420220,0.58841281,2111.0,2109.9,0.57800303]
[1772700421309,0.58841281,2111.0,2109.8,0.23694]
[1772700421515,0.58841281,2110.8,2109.8,0.23694]
[1772700421714,0.58841281,2110.7,2109.8,0.81494303]
[1772700421915,0.58841281,2110.5,2109.9,0.57800303]
[1772700422518,0.00502642,2110.8,2110.3,0.57800303]
[1772700422723,7.26341281,2111.1,2110.3,0.57800303]
[1772700423022,0.58841281,2111.0,2110.3,0.57800303]
[1772700423717,0.58841281,2111.0,2110.1,1.06200303]
[1772700423918,0.59345941,2111.0,2110.1,0.48893397]
[1772700424223,0.59345941,2111.0,2110.1,0.00493397]
[1772700424612,0.59345941,2111.0,2110.1,0.582937]
[1772700424817,7.26641281,2110.9,2110.1,0.582937]
[1772700425020,0.58841281,2110.8,2110.1,0.582937]
[1772700425919,0.58841281,2110.8,2110.1,0.00493397]
[1772700427120,0.58841281,2110.8,2110.1,0.582937]